[Event "Late-Titled-Tuesday-Blitz-April-30-2024"]
[Site "Chess.com"]
[Date "2024.04.30"]
[Round "3"]
[White "MFatigue"]
[Black "Sanyura"]
[Result "1-0"]
[WhiteElo "2487"]
[BlackElo "2651"]
[TimeControl "180+1"]
[EndTime "14:30:49 PDT"]
[Termination "MFatigue won on time"]

1. e4 {[%clk 0:02:59.9]} 1... c6 {[%clk 0:02:59.9]} 2. Bc4 {[%clk 0:02:58]} 2...
d5 {[%clk 0:03:00]} 3. Bb3 {[%clk 0:02:58.6]} 3... dxe4 {[%clk 0:02:55.5]} 4.
Qh5 {[%clk 0:02:58.8]} 4... e6 {[%clk 0:02:54.6]} 5. Nc3 {[%clk 0:02:58.7]} 5...
Nf6 {[%clk 0:02:54.1]} 6. Qh4 {[%clk 0:02:59.3]} 6... Nbd7 {[%clk 0:02:50.7]} 7.
Nxe4 {[%clk 0:02:59.4]} 7... Nxe4 {[%clk 0:02:49.8]} 8. Qxe4 {[%clk 0:03:00.3]}
8... a5 {[%clk 0:02:47.9]} 9. d4 {[%clk 0:02:53.6]} 9... Nf6 {[%clk 0:02:44.9]}
10. Qe3 {[%clk 0:02:49.9]} 10... a4 {[%clk 0:02:36.6]} 11. Bc4 {[%clk
0:02:50.1]} 11... a3 {[%clk 0:02:36.7]} 12. Nf3 {[%clk 0:02:49]} 12... axb2
{[%clk 0:02:24.5]} 13. Bxb2 {[%clk 0:02:49.9]} 13... Bb4+ {[%clk 0:02:24.3]} 14.
c3 {[%clk 0:02:49.2]} 14... Ba3 {[%clk 0:02:24.3]} 15. Bxa3 {[%clk 0:02:40.2]}
15... Rxa3 {[%clk 0:02:23.9]} 16. Bb3 {[%clk 0:02:41.1]} 16... O-O {[%clk
0:02:21.7]} 17. O-O {[%clk 0:02:40.9]} 17... b6 {[%clk 0:02:22]} 18. Ne5 {[%clk
0:02:39.6]} 18... Bb7 {[%clk 0:02:16.8]} 19. c4 {[%clk 0:02:33.3]} 19... Ra5
{[%clk 0:01:47.9]} 20. Rfd1 {[%clk 0:02:32.4]} 20... Qd6 {[%clk 0:01:46.4]} 21.
c5 {[%clk 0:02:14.1]} 21... bxc5 {[%clk 0:01:45.2]} 22. Nc4 {[%clk 0:02:14.4]}
22... Qc7 {[%clk 0:01:32.9]} 23. Nxa5 {[%clk 0:02:14.1]} 23... Qxa5 {[%clk
0:01:32.9]} 24. dxc5 {[%clk 0:02:11.7]} 24... h6 {[%clk 0:01:22.4]} 25. h3
{[%clk 0:01:56.5]} 25... Ba6 {[%clk 0:01:18.9]} 26. Rd6 {[%clk 0:01:52.9]} 26...
Rc8 {[%clk 0:01:04.5]} 27. Rad1 {[%clk 0:01:51.2]} 27... Nd5 {[%clk 0:00:59]}
28. Qd4 {[%clk 0:01:40.9]} 28... Nc3 {[%clk 0:00:32.4]} 29. Rd8+ {[%clk
0:01:22.7]} 29... Kh7 {[%clk 0:00:31.9]} 30. Qd2 {[%clk 0:00:32.7]} 30... Rxd8
{[%clk 0:00:06]} 31. Qxd8 {[%clk 0:00:32.3]} 31... Qxc5 {[%clk 0:00:06.4]} 32.
Qd6 {[%clk 0:00:13]} 32... Ne2+ {[%clk 0:00:03.7]} 33. Kh2 {[%clk 0:00:13.3]}
33... Qxf2 {[%clk 0:00:03.8]} 34. Bc2+ {[%clk 0:00:07.5]} 34... f5 {[%clk
0:00:02.9]} 35. Bb3 {[%clk 0:00:03.9]} 35... Qf4+ {[%clk 0:00:02.4]} 36. Qxf4
{[%clk 0:00:03.9]} 36... Nxf4 {[%clk 0:00:03.3]} 37. Rc1 {[%clk 0:00:03.2]}
37... Bb5 {[%clk 0:00:02.9]} 38. a4 {[%clk 0:00:03.4]} 38... Bd3 {[%clk
0:00:02.7]} 39. Rxc6 {[%clk 0:00:03.6]} 39... e5 {[%clk 0:00:03.3]} 40. a5
{[%clk 0:00:03.9]} 40... Be4 {[%clk 0:00:03.6]} 41. Rb6 {[%clk 0:00:03.7]} 41...
Nxg2 {[%clk 0:00:03.7]} 42. a6 {[%clk 0:00:04.2]} 42... Nh4 {[%clk 0:00:02.7]}
43. Rb4 {[%clk 0:00:03.9]} 43... Ba8 {[%clk 0:00:01.9]} 44. Rb5 {[%clk
0:00:03.7]} 44... Nf3+ {[%clk 0:00:02.2]} 45. Kg3 {[%clk 0:00:03.5]} 45... Nd4
{[%clk 0:00:03.1]} 46. Rb8 {[%clk 0:00:02.7]} 46... f4+ {[%clk 0:00:02.8]} 47.
Kf2 {[%clk 0:00:02.7]} 47... Be4 {[%clk 0:00:02.6]} 48. a7 {[%clk 0:00:03]}
48... f3 {[%clk 0:00:02.3]} 49. Bd1 {[%clk 0:00:03]} 49... Kg6 {[%clk 0:00:02]}
50. a8=Q {[%clk 0:00:03]} 50... Bxa8 {[%clk 0:00:02.3]} 51. Rxa8 {[%clk
0:00:03.9]} 51... e4 {[%clk 0:00:02.6]} 52. Ra4 {[%clk 0:00:03.8]} 52... Nf5
{[%clk 0:00:01.3]} 53. Rxe4 {[%clk 0:00:03.8]} 53... Kg5 {[%clk 0:00:01.9]} 54.
Rg4+ {[%clk 0:00:04]} 54... Kf6 {[%clk 0:00:01.9]} 55. Bxf3 {[%clk 0:00:04.9]}
55... g5 {[%clk 0:00:02.1]} 56. Ra4 {[%clk 0:00:05]} 56... Nd6 {[%clk 0:00:02]}
57. Ra6 {[%clk 0:00:05.2]} 57... Ke5 {[%clk 0:00:02.9]} 58. Kg3 {[%clk
0:00:05.7]} 58... Nf5+ {[%clk 0:00:02.2]} 59. Kf2 {[%clk 0:00:06.3]} 59... Nd6
{[%clk 0:00:01.7]} 60. Ra5+ {[%clk 0:00:06.3]} 60... Kf4 {[%clk 0:00:01.5]} 61.
Rd5 {[%clk 0:00:05.6]} 61... Nf5 {[%clk 0:00:01.2]} 62. Rd8 {[%clk 0:00:05.2]}
62... Nh4 {[%clk 0:00:01.4]} 63. Bg4 {[%clk 0:00:04.4]} 63... Ng6 {[%clk
0:00:00.1]} 64. Rd6 {[%clk 0:00:04.4]} 64... Ne5 {[%clk 0:00:00.1]} 65. Rxh6
{[%clk 0:00:04.7]} 1-0

[Event "Late-Titled-Tuesday-Blitz-April-30-2024"]
[Site "Chess.com"]
[Date "2024.04.30"]
[Round "3"]
[White "BabageldiAnnaberdiyev"]
[Black "PenguinPacks"]
[Result "0-1"]
[WhiteElo "2611"]
[BlackElo "2448"]
[TimeControl "180+1"]
[EndTime "14:30:54 PDT"]
[Termination "PenguinPacks won by resignation"]

1. e4 {[%clk 0:03:00.9]} 1... c5 {[%clk 0:02:57.8]} 2. Nf3 {[%clk 0:03:00.8]}
2... d6 {[%clk 0:02:58]} 3. d4 {[%clk 0:02:59.8]} 3... cxd4 {[%clk 0:02:58.9]}
4. Nxd4 {[%clk 0:03:00]} 4... Nf6 {[%clk 0:02:59.7]} 5. Nc3 {[%clk 0:03:00]}
5... a6 {[%clk 0:03:00.4]} 6. Bg5 {[%clk 0:02:58.9]} 6... Nbd7 {[%clk
0:03:00.4]} 7. Be2 {[%clk 0:02:57.3]} 7... h6 {[%clk 0:02:55.6]} 8. Be3 {[%clk
0:02:56.1]} 8... Qc7 {[%clk 0:02:53.4]} 9. a4 {[%clk 0:02:53.1]} 9... Nc5 {[%clk
0:02:43.1]} 10. f3 {[%clk 0:02:51.2]} 10... e6 {[%clk 0:02:43.6]} 11. O-O {[%clk
0:02:49.4]} 11... Be7 {[%clk 0:02:43.5]} 12. a5 {[%clk 0:02:48.5]} 12... Bd7
{[%clk 0:02:40.4]} 13. Kh1 {[%clk 0:02:41.7]} 13... O-O {[%clk 0:02:39.7]} 14.
Nb3 {[%clk 0:02:33.1]} 14... Nxb3 {[%clk 0:02:27.4]} 15. cxb3 {[%clk 0:02:34]}
15... d5 {[%clk 0:02:24]} 16. exd5 {[%clk 0:02:30.2]} 16... exd5 {[%clk
0:02:24.9]} 17. Bd4 {[%clk 0:02:15.6]} 17... Bc6 {[%clk 0:02:14.2]} 18. Bd3
{[%clk 0:02:01.9]} 18... Nd7 {[%clk 0:02:10.5]} 19. Bc2 {[%clk 0:01:56.7]} 19...
Bf6 {[%clk 0:02:06]} 20. Qd3 {[%clk 0:01:54.7]} 20... g6 {[%clk 0:02:03.8]} 21.
Rfd1 {[%clk 0:01:49.1]} 21... Rad8 {[%clk 0:01:54.3]} 22. Qd2 {[%clk 0:01:44.4]}
22... Kh7 {[%clk 0:01:43]} 23. b4 {[%clk 0:01:40.7]} 23... Bxd4 {[%clk 0:01:32]}
24. Qxd4 {[%clk 0:01:39.6]} 24... Ne5 {[%clk 0:01:20.6]} 25. Bb3 {[%clk
0:01:36.9]} 25... Nc4 {[%clk 0:01:06.7]} 26. Bxc4 {[%clk 0:01:32.2]} 26... dxc4
{[%clk 0:01:07.6]} 27. Qxc4 {[%clk 0:01:32.4]} 27... Qe5 {[%clk 0:01:04.3]} 28.
Qc5 {[%clk 0:01:27.7]} 28... Qf6 {[%clk 0:00:58.2]} 29. Qf2 {[%clk 0:01:12.9]}
29... Rde8 {[%clk 0:00:48.2]} 30. Re1 {[%clk 0:01:10.3]} 30... Rd8 {[%clk
0:00:48.1]} 31. Rad1 {[%clk 0:01:09.3]} 31... Rfe8 {[%clk 0:00:48.3]} 32. h3
{[%clk 0:01:07.6]} 32... Qf4 {[%clk 0:00:43.7]} 33. Rxd8 {[%clk 0:00:43.6]}
33... Rxd8 {[%clk 0:00:43.1]} 34. Qe3 {[%clk 0:00:44]} 34... Qg3 {[%clk
0:00:37.5]} 35. Rf1 {[%clk 0:00:39.8]} 35... Rd7 {[%clk 0:00:34.8]} 36. Ne4
{[%clk 0:00:36.6]} 36... Qe5 {[%clk 0:00:35.1]} 37. Qc5 {[%clk 0:00:31.9]} 37...
Qxb2 {[%clk 0:00:30.9]} 38. Rf2 {[%clk 0:00:26.4]} 38... Qa1+ {[%clk 0:00:23.5]}
39. Kh2 {[%clk 0:00:26.8]} 39... Qg7 {[%clk 0:00:21.3]} 40. Ng3 {[%clk
0:00:18.4]} 40... f5 {[%clk 0:00:20.1]} 41. h4 {[%clk 0:00:16.5]} 41... Qf6
{[%clk 0:00:20.3]} 42. Qc4 {[%clk 0:00:14.7]} 42... Bb5 {[%clk 0:00:19.2]} 43.
Qf4 {[%clk 0:00:12]} 43... Rd4 {[%clk 0:00:19.6]} 44. Qc7+ {[%clk 0:00:11.1]}
44... Rd7 {[%clk 0:00:20.2]} 45. Qf4 {[%clk 0:00:10.9]} 45... Kg7 {[%clk
0:00:20.9]} 46. h5 {[%clk 0:00:09.5]} 46... Rd4 {[%clk 0:00:19.8]} 47. Qc7+
{[%clk 0:00:08.9]} 47... Rd7 {[%clk 0:00:20.5]} 48. Qf4 {[%clk 0:00:09.3]} 48...
Rd4 {[%clk 0:00:09.2]} 49. Qc7+ {[%clk 0:00:08.5]} 49... Bd7 {[%clk 0:00:07.6]}
50. Re2 {[%clk 0:00:05.3]} 50... Qh4+ {[%clk 0:00:06.5]} 51. Kg1 {[%clk
0:00:05.2]} 51... Rd1+ {[%clk 0:00:06.6]} 52. Kf2 {[%clk 0:00:05.5]} 52... Qd4+
{[%clk 0:00:07.1]} 53. Re3 {[%clk 0:00:04.1]} 53... Rd3 {[%clk 0:00:05.1]} 54.
Ne2 {[%clk 0:00:04.4]} 54... Qxe3+ {[%clk 0:00:05.1]} 55. Kg3 {[%clk 0:00:04.2]}
55... f4+ {[%clk 0:00:04.3]} 56. Qxf4 {[%clk 0:00:03.1]} 56... Qxf4+ {[%clk
0:00:04.5]} 57. Nxf4 {[%clk 0:00:03.6]} 57... Rd4 {[%clk 0:00:05.2]} 58. Nxg6
{[%clk 0:00:04.1]} 58... Rxb4 {[%clk 0:00:05.4]} 59. Ne5 {[%clk 0:00:04.8]}
59... Be6 {[%clk 0:00:05.9]} 60. f4 {[%clk 0:00:04.9]} 60... Rb5 {[%clk
0:00:05.8]} 61. Kh4 {[%clk 0:00:05.8]} 61... Rxa5 {[%clk 0:00:05.3]} 62. g4
{[%clk 0:00:05.1]} 62... Rxe5 {[%clk 0:00:05.4]} 63. fxe5 {[%clk 0:00:06]} 63...
a5 {[%clk 0:00:06]} 64. g5 {[%clk 0:00:06.8]} 64... hxg5+ {[%clk 0:00:06.9]} 65.
Kxg5 {[%clk 0:00:07.3]} 65... Kh7 {[%clk 0:00:07.7]} 66. Kf6 {[%clk 0:00:06.4]}
66... Bc4 {[%clk 0:00:08.1]} 67. Ke7 {[%clk 0:00:06.2]} 67... Bb5 {[%clk
0:00:08.2]} 68. Kd6 {[%clk 0:00:07.1]} 68... a4 {[%clk 0:00:07.9]} 69. e6 {[%clk
0:00:08]} 69... Bc6 {[%clk 0:00:08.5]} 70. Kc5 {[%clk 0:00:08.9]} 70... a3
{[%clk 0:00:09.1]} 0-1

[Event "Late-Titled-Tuesday-Blitz-April-30-2024"]
[Site "Chess.com"]
[Date "2024.04.30"]
[Round "3"]
[White "Dhaydon19"]
[Black "platy3"]
[Result "0-1"]
[WhiteElo "2608"]
[BlackElo "2877"]
[TimeControl "180+1"]
[EndTime "14:30:55 PDT"]
[Termination "platy3 won on time"]

1. d4 {[%clk 0:03:00.9]} 1... g6 {[%clk 0:02:57]} 2. Nf3 {[%clk 0:02:59.4]} 2...
Bg7 {[%clk 0:02:57]} 3. g3 {[%clk 0:02:57.8]} 3... Nf6 {[%clk 0:02:56.7]} 4. Bg2
{[%clk 0:02:57.6]} 4... O-O {[%clk 0:02:57.6]} 5. O-O {[%clk 0:02:57.6]} 5... d6
{[%clk 0:02:58.5]} 6. c4 {[%clk 0:02:56.8]} 6... Nc6 {[%clk 0:02:59.3]} 7. d5
{[%clk 0:02:56]} 7... Na5 {[%clk 0:02:59.2]} 8. Nbd2 {[%clk 0:02:54.8]} 8... c5
{[%clk 0:02:59.4]} 9. Rb1 {[%clk 0:02:52.4]} 9... b5 {[%clk 0:02:57.8]} 10. Qc2
{[%clk 0:02:43.5]} 10... bxc4 {[%clk 0:02:53.7]} 11. e4 {[%clk 0:02:42.2]} 11...
Ba6 {[%clk 0:02:50.6]} 12. Re1 {[%clk 0:02:41.3]} 12... Nd7 {[%clk 0:02:51]} 13.
Bf1 {[%clk 0:02:36.9]} 13... Rb8 {[%clk 0:02:49.3]} 14. Nxc4 {[%clk 0:02:33.8]}
14... Nxc4 {[%clk 0:02:49]} 15. Bxc4 {[%clk 0:02:34.1]} 15... Bxc4 {[%clk
0:02:49.8]} 16. Qxc4 {[%clk 0:02:34.7]} 16... Qa5 {[%clk 0:02:50]} 17. Bd2
{[%clk 0:02:30.4]} 17... Qb5 {[%clk 0:02:50.1]} 18. Qxb5 {[%clk 0:02:28.2]}
18... Rxb5 {[%clk 0:02:49.9]} 19. b3 {[%clk 0:02:28.9]} 19... a5 {[%clk
0:02:34.6]} 20. Rbc1 {[%clk 0:02:28.7]} 20... Ra8 {[%clk 0:02:31]} 21. Rb1
{[%clk 0:02:10.7]} 21... Bf6 {[%clk 0:02:20.1]} 22. Rec1 {[%clk 0:02:08.4]}
22... Kf8 {[%clk 0:02:11.8]} 23. Kf1 {[%clk 0:02:02.4]} 23... Ke8 {[%clk
0:02:11.3]} 24. Ke2 {[%clk 0:02:01.8]} 24... a4 {[%clk 0:02:11.7]} 25. b4 {[%clk
0:01:57.1]} 25... Rab8 {[%clk 0:02:04.2]} 26. a3 {[%clk 0:01:55.2]} 26... cxb4
{[%clk 0:02:04.6]} 27. Rxb4 {[%clk 0:01:51]} 27... Nc5 {[%clk 0:02:04.6]} 28.
Rcc4 {[%clk 0:01:47.2]} 28... Bb2 {[%clk 0:01:59.9]} 29. Rxb5 {[%clk 0:01:39.8]}
29... Rxb5 {[%clk 0:02:00.8]} 30. Bb4 {[%clk 0:01:37.5]} 30... Na6 {[%clk
0:02:00.4]} 31. Bd2 {[%clk 0:01:29.9]} 31... Nc5 {[%clk 0:01:59.7]} 32. Bb4
{[%clk 0:01:28.6]} 32... Nb3 {[%clk 0:01:50.2]} 33. Nd2 {[%clk 0:01:23.6]} 33...
f5 {[%clk 0:01:33.9]} 34. f3 {[%clk 0:01:19]} 34... fxe4 {[%clk 0:01:31.4]} 35.
fxe4 {[%clk 0:01:18.7]} 35... Bf6 {[%clk 0:01:25.7]} 36. Kd3 {[%clk 0:01:13.2]}
36... Kd7 {[%clk 0:01:23.4]} 37. Kc2 {[%clk 0:01:09.8]} 37... Na5 {[%clk
0:01:03.4]} 38. Bxa5 {[%clk 0:01:09.2]} 38... Rxa5 {[%clk 0:01:04.2]} 39. Rb4
{[%clk 0:01:05.2]} 39... Kc7 {[%clk 0:00:50.3]} 40. Nc4 {[%clk 0:01:03.6]} 40...
Ra6 {[%clk 0:00:50.7]} 41. Kd3 {[%clk 0:01:01.9]} 41... g5 {[%clk 0:00:49.1]}
42. Ne3 {[%clk 0:00:59.5]} 42... h5 {[%clk 0:00:48.9]} 43. h3 {[%clk 0:00:57.6]}
43... Ra8 {[%clk 0:00:47.4]} 44. g4 {[%clk 0:00:57]} 44... hxg4 {[%clk
0:00:46.8]} 45. hxg4 {[%clk 0:00:54.1]} 45... Rh8 {[%clk 0:00:40.9]} 46. Rxa4
{[%clk 0:00:53.4]} 46... Rh3 {[%clk 0:00:38.6]} 47. Ke2 {[%clk 0:00:52.4]} 47...
Be5 {[%clk 0:00:29.6]} 48. Ra7+ {[%clk 0:00:50.5]} 48... Kb6 {[%clk 0:00:25.7]}
49. Rxe7 {[%clk 0:00:49.6]} 49... Bf4 {[%clk 0:00:26.3]} 50. Ng2 {[%clk
0:00:45.6]} 50... Be5 {[%clk 0:00:24.3]} 51. Ne3 {[%clk 0:00:45.3]} 51... Bf4
{[%clk 0:00:24.4]} 52. Nf5 {[%clk 0:00:26.5]} 52... Rxa3 {[%clk 0:00:20.2]} 53.
e5 {[%clk 0:00:21.2]} 53... Bxe5 {[%clk 0:00:17.2]} 54. Re6 {[%clk 0:00:18.7]}
54... Kc5 {[%clk 0:00:17.5]} 55. Rg6 {[%clk 0:00:19.4]} 55... Bf4 {[%clk
0:00:16.8]} 56. Ng7 {[%clk 0:00:17.3]} 56... Kxd5 {[%clk 0:00:16.5]} 57. Nh5
{[%clk 0:00:18.1]} 57... Ke5 {[%clk 0:00:13.9]} 58. Rg8 {[%clk 0:00:18.1]} 58...
d5 {[%clk 0:00:12.5]} 59. Re8+ {[%clk 0:00:18.1]} 59... Kd4 {[%clk 0:00:13.1]}
60. Nf6 {[%clk 0:00:18.6]} 60... Be5 {[%clk 0:00:09.6]} 61. Nd7 {[%clk
0:00:17.1]} 61... Re3+ {[%clk 0:00:06.3]} 62. Kf1 {[%clk 0:00:17]} 62... Re4
{[%clk 0:00:06.2]} 63. Nxe5 {[%clk 0:00:16.4]} 63... Rxe5 {[%clk 0:00:06.5]} 64.
Rf8 {[%clk 0:00:16.9]} 64... Re4 {[%clk 0:00:06.2]} 65. Kf2 {[%clk 0:00:14.1]}
65... Rxg4 {[%clk 0:00:05.5]} 66. Kf3 {[%clk 0:00:14.8]} 66... Rf4+ {[%clk
0:00:05.5]} 67. Rxf4+ {[%clk 0:00:13.9]} 67... gxf4 {[%clk 0:00:06.4]} 68. Kxf4
{[%clk 0:00:14.6]} 68... Kc3 {[%clk 0:00:06.8]} 69. Ke3 {[%clk 0:00:15]} 69...
d4+ {[%clk 0:00:07.4]} 70. Ke2 {[%clk 0:00:15.8]} 70... d3+ {[%clk 0:00:07]} 71.
Kf3 {[%clk 0:00:16.5]} 71... d2 {[%clk 0:00:07.3]} 72. Ke4 {[%clk 0:00:14.1]}
72... d1=Q {[%clk 0:00:06]} 0-1

[Event "Late-Titled-Tuesday-Blitz-April-30-2024"]
[Site "Chess.com"]
[Date "2024.04.30"]
[Round "3"]
[White "SaqoChess_Twitch"]
[Black "mbojan"]
[Result "0-1"]
[WhiteElo "2679"]
[BlackElo "2953"]
[TimeControl "180+1"]
[EndTime "14:31:03 PDT"]
[Termination "mbojan won by checkmate"]

1. d4 {[%clk 0:03:00.9]} 1... a6 {[%clk 0:03:00.2]} 2. c4 {[%clk 0:02:58.7]}
2... b5 {[%clk 0:02:59.7]} 3. cxb5 {[%clk 0:02:57.5]} 3... axb5 {[%clk
0:03:00.6]} 4. e3 {[%clk 0:02:57.1]} 4... Bb7 {[%clk 0:03:00]} 5. Nf3 {[%clk
0:02:57.1]} 5... b4 {[%clk 0:02:59.8]} 6. Be2 {[%clk 0:02:56.9]} 6... Nf6 {[%clk
0:02:59.4]} 7. O-O {[%clk 0:02:57.5]} 7... e6 {[%clk 0:02:59.8]} 8. a3 {[%clk
0:02:57.8]} 8... bxa3 {[%clk 0:02:59.5]} 9. Nxa3 {[%clk 0:02:56.7]} 9... Be7
{[%clk 0:02:59.2]} 10. Bd2 {[%clk 0:02:56.6]} 10... O-O {[%clk 0:02:59.2]} 11.
Nc4 {[%clk 0:02:56.5]} 11... Nc6 {[%clk 0:02:54.9]} 12. Rxa8 {[%clk 0:02:54.5]}
12... Qxa8 {[%clk 0:02:55.8]} 13. Qa1 {[%clk 0:02:54.7]} 13... Qxa1 {[%clk
0:02:52.7]} 14. Rxa1 {[%clk 0:02:55.6]} 14... Ra8 {[%clk 0:02:52.9]} 15. Rxa8+
{[%clk 0:02:54.9]} 15... Bxa8 {[%clk 0:02:53.8]} 16. Kf1 {[%clk 0:02:55]} 16...
d6 {[%clk 0:02:50.1]} 17. Bd3 {[%clk 0:02:49.4]} 17... h6 {[%clk 0:02:47]} 18.
Ke2 {[%clk 0:02:49.1]} 18... Kf8 {[%clk 0:02:47.4]} 19. h3 {[%clk 0:02:48.9]}
19... Ke8 {[%clk 0:02:47.8]} 20. Na5 {[%clk 0:02:45.6]} 20... Nxa5 {[%clk
0:02:45.7]} 21. Bxa5 {[%clk 0:02:46.5]} 21... Kd7 {[%clk 0:02:46]} 22. g3 {[%clk
0:02:42.7]} 22... Ne4 {[%clk 0:02:43.9]} 23. h4 {[%clk 0:02:40.7]} 23... f5
{[%clk 0:02:38.3]} 24. Nd2 {[%clk 0:02:40]} 24... Nf6 {[%clk 0:02:37.8]} 25. Nc4
{[%clk 0:02:29.2]} 25... g5 {[%clk 0:02:34.8]} 26. hxg5 {[%clk 0:02:28.8]} 26...
hxg5 {[%clk 0:02:35.7]} 27. Bd2 {[%clk 0:02:27.4]} 27... Be4 {[%clk 0:02:34.1]}
28. f3 {[%clk 0:02:23.8]} 28... Bxd3+ {[%clk 0:02:33.5]} 29. Kxd3 {[%clk
0:02:24.7]} 29... g4 {[%clk 0:02:33.9]} 30. fxg4 {[%clk 0:02:18.3]} 30... Nxg4
{[%clk 0:02:34.8]} 31. Be1 {[%clk 0:02:13.2]} 31... Nf6 {[%clk 0:02:20]} 32. Nd2
{[%clk 0:02:06.6]} 32... d5 {[%clk 0:02:20.1]} 33. Nf3 {[%clk 0:01:57.1]} 33...
Bd6 {[%clk 0:02:20.3]} 34. Ng1 {[%clk 0:01:51.5]} 34... Ne4 {[%clk 0:02:16.7]}
35. Ne2 {[%clk 0:01:51.9]} 35... Kc6 {[%clk 0:02:09.7]} 36. b3 {[%clk
0:01:49.1]} 36... Kb5 {[%clk 0:02:08.2]} 37. Nf4 {[%clk 0:01:47.2]} 37... Ng5
{[%clk 0:01:42.2]} 38. Ne2 {[%clk 0:01:23.7]} 38... Kc6 {[%clk 0:01:41.7]} 39.
Nf4 {[%clk 0:01:19]} 39... Kd7 {[%clk 0:01:41.8]} 40. Ke2 {[%clk 0:01:15.9]}
40... Ne4 {[%clk 0:01:30.3]} 41. Kf3 {[%clk 0:01:15.7]} 41... Nf6 {[%clk
0:01:30]} 42. Nd3 {[%clk 0:01:14.7]} 42... Ne4 {[%clk 0:01:26.8]} 43. Nf4 {[%clk
0:01:06]} 43... Ng5+ {[%clk 0:01:25.9]} 44. Ke2 {[%clk 0:00:57.4]} 44... Ke7
{[%clk 0:01:21.3]} 45. Kf2 {[%clk 0:00:54.6]} 45... Kf6 {[%clk 0:01:18.9]} 46.
Kg2 {[%clk 0:00:52.9]} 46... Kf7 {[%clk 0:01:11.5]} 47. Nh3 {[%clk 0:00:51.2]}
47... Ne4 {[%clk 0:01:00.8]} 48. Kf3 {[%clk 0:00:49.9]} 48... Nf6 {[%clk
0:00:52.6]} 49. Ng5+ {[%clk 0:00:47.6]} 49... Ke7 {[%clk 0:00:52.4]} 50. Nh3
{[%clk 0:00:48]} 50... c5 {[%clk 0:00:49.9]} 51. dxc5 {[%clk 0:00:46.1]} 51...
Bxc5 {[%clk 0:00:50.8]} 52. Nf2 {[%clk 0:00:45.6]} 52... e5 {[%clk 0:00:50.1]}
53. Bc3 {[%clk 0:00:32.4]} 53... Ke6 {[%clk 0:00:39.8]} 54. Ke2 {[%clk
0:00:21.9]} 54... Bb6 {[%clk 0:00:24.1]} 55. Nd3 {[%clk 0:00:21.3]} 55... Ng4
{[%clk 0:00:23.1]} 56. Bd2 {[%clk 0:00:19.8]} 56... Ba7 {[%clk 0:00:23.5]} 57.
b4 {[%clk 0:00:20.1]} 57... Nf6 {[%clk 0:00:23.3]} 58. Bc3 {[%clk 0:00:19.8]}
58... Bb8 {[%clk 0:00:23.8]} 59. b5 {[%clk 0:00:19.6]} 59... Ne4 {[%clk
0:00:23.6]} 60. Be1 {[%clk 0:00:17.1]} 60... Ba7 {[%clk 0:00:21.7]} 61. Kf3
{[%clk 0:00:16]} 61... Nd6 {[%clk 0:00:22]} 62. Bc3 {[%clk 0:00:14.6]} 62... e4+
{[%clk 0:00:22.4]} 63. Ke2 {[%clk 0:00:15.1]} 63... exd3+ {[%clk 0:00:23.3]} 64.
Kxd3 {[%clk 0:00:16]} 64... Nxb5 {[%clk 0:00:23.9]} 65. Bb2 {[%clk 0:00:16.1]}
65... Bb8 {[%clk 0:00:24.3]} 66. g4 {[%clk 0:00:14.6]} 66... fxg4 {[%clk
0:00:23.2]} 67. e4 {[%clk 0:00:15.5]} 67... Nd6 {[%clk 0:00:19.5]} 68. exd5+
{[%clk 0:00:15.4]} 68... Kxd5 {[%clk 0:00:20.4]} 69. Ke3 {[%clk 0:00:15.6]}
69... Nf5+ {[%clk 0:00:21.1]} 70. Kf2 {[%clk 0:00:15.5]} 70... Ke4 {[%clk
0:00:21.7]} 71. Ba3 {[%clk 0:00:14.6]} 71... Bf4 {[%clk 0:00:21]} 72. Kg2 {[%clk
0:00:14.3]} 72... Ne3+ {[%clk 0:00:20.9]} 73. Kg1 {[%clk 0:00:14.1]} 73... Kf3
{[%clk 0:00:21.7]} 74. Bc5 {[%clk 0:00:14.3]} 74... g3 {[%clk 0:00:21.4]} 75.
Bb6 {[%clk 0:00:13.9]} 75... g2 {[%clk 0:00:21.8]} 76. Bc7 {[%clk 0:00:11.4]}
76... Bg5 {[%clk 0:00:20]} 77. Bg3 {[%clk 0:00:05.9]} 77... Ng4 {[%clk
0:00:19.3]} 78. Bf4 {[%clk 0:00:04.5]} 78... Bf6 {[%clk 0:00:17.8]} 79. Be5
{[%clk 0:00:04]} 79... Nxe5 {[%clk 0:00:18.2]} 80. Kh2 {[%clk 0:00:04.1]} 80...
Ng4+ {[%clk 0:00:18.2]} 81. Kh3 {[%clk 0:00:04.7]} 81... Nf2+ {[%clk 0:00:18.5]}
82. Kh2 {[%clk 0:00:05.1]} 82... Bd4 {[%clk 0:00:17.7]} 83. Kg1 {[%clk
0:00:04.5]} 83... Ng4# {[%clk 0:00:18.6]} 0-1